[Event "*** Titled Tuesday Blitz"]
[Site "Chess.com"]
[Date "2020.12.01"]
[Round "10"]
[White "barriochess"]
[Black "esrosenberg"]
[Result "1/2-1/2"]
[WhiteElo "2363"]
[BlackElo "2218"]
[TimeControl "180+1"]
[EndTime "11:57:36 PST"]
[Termination "Game drawn - insufficient material"]

1. d4 {[%clk 0:03:00.9]} 1... Nf6 {[%clk 0:02:59.4]} 2. c4 {[%clk 0:03:01.3]}
2... e6 {[%clk 0:02:59.8]} 3. Nc3 {[%clk 0:03:01.2]} 3... Bb4 {[%clk 0:02:59.9]}
4. f3 {[%clk 0:02:59.3]} 4... d5 {[%clk 0:02:59.4]} 5. a3 {[%clk 0:02:57.7]}
5... Bxc3+ {[%clk 0:02:59.5]} 6. bxc3 {[%clk 0:02:58.6]} 6... c5 {[%clk
0:02:56.9]} 7. cxd5 {[%clk 0:02:58.8]} 7... Nxd5 {[%clk 0:02:57]} 8. dxc5 {[%clk
0:02:58.2]} 8... f5 {[%clk 0:02:56.9]} 9. Nh3 {[%clk 0:02:56.6]} 9... Nc6 {[%clk
0:02:51.5]} 10. c4 {[%clk 0:02:50.5]} 10... Nf6 {[%clk 0:02:15.7]} 11. Qxd8+
{[%clk 0:02:47.2]} 11... Nxd8 {[%clk 0:02:05.4]} 12. Bf4 {[%clk 0:02:39.2]}
12... O-O {[%clk 0:01:58.4]} 13. Bd6 {[%clk 0:02:31.1]} 13... Re8 {[%clk
0:01:55.6]} 14. e3 {[%clk 0:02:28.3]} 14... e5 {[%clk 0:01:47.3]} 15. Be2 {[%clk
0:02:27.3]} 15... Nf7 {[%clk 0:01:29.2]} 16. Nf2 {[%clk 0:02:22.1]} 16... Be6
{[%clk 0:01:22]} 17. Rd1 {[%clk 0:02:16.9]} 17... Rac8 {[%clk 0:01:20.4]} 18.
Rc1 {[%clk 0:02:01.2]} 18... b6 {[%clk 0:01:08.8]} 19. Nd3 {[%clk 0:01:57.2]}
19... Nxd6 {[%clk 0:00:57.7]} 20. cxd6 {[%clk 0:01:56.1]} 20... Bxc4 {[%clk
0:00:57.4]} 21. Nxe5 {[%clk 0:01:50]} 21... Rxe5 {[%clk 0:00:44.6]} 22. Bxc4+
{[%clk 0:01:47.4]} 22... Kf8 {[%clk 0:00:41.6]} 23. Kd2 {[%clk 0:01:44.6]} 23...
Rd8 {[%clk 0:00:30.6]} 24. Ke2 {[%clk 0:01:40.3]} 24... Rxd6 {[%clk 0:00:29.2]}
25. Rhd1 {[%clk 0:01:35.1]} 25... Rxd1 {[%clk 0:00:26]} 26. Rxd1 {[%clk
0:01:34.6]} 26... Ke7 {[%clk 0:00:22.4]} 27. Kd3 {[%clk 0:01:33.1]} 27... Ra5
{[%clk 0:00:20]} 28. Ra1 {[%clk 0:01:31.6]} 28... Nd7 {[%clk 0:00:19.4]} 29. Kc3
{[%clk 0:01:30.6]} 29... Ne5 {[%clk 0:00:17.3]} 30. Bb3 {[%clk 0:01:28.9]} 30...
g5 {[%clk 0:00:16.1]} 31. h3 {[%clk 0:01:27.1]} 31... h5 {[%clk 0:00:16]} 32. f4
{[%clk 0:01:27.1]} 32... gxf4 {[%clk 0:00:14.8]} 33. exf4 {[%clk 0:01:28]} 33...
Ng6 {[%clk 0:00:15]} 34. Rf1 {[%clk 0:01:25.3]} 34... Nh4 {[%clk 0:00:13.1]} 35.
g3 {[%clk 0:01:24.9]} 35... Ng6 {[%clk 0:00:12.6]} 36. a4 {[%clk 0:01:23.9]}
36... Rc5+ {[%clk 0:00:11.9]} 37. Kd4 {[%clk 0:01:22.6]} 37... Kf6 {[%clk
0:00:12.3]} 38. h4 {[%clk 0:01:21.6]} 38... Ne7 {[%clk 0:00:12.1]} 39. Re1
{[%clk 0:01:21.3]} 39... Nc6+ {[%clk 0:00:12.4]} 40. Kd3 {[%clk 0:01:19.1]}
40... Nb4+ {[%clk 0:00:12]} 41. Kd2 {[%clk 0:01:17.5]} 41... Rc6 {[%clk
0:00:10.1]} 42. Re8 {[%clk 0:01:12.8]} 42... Na6 {[%clk 0:00:09.4]} 43. Rf8+
{[%clk 0:01:11.3]} 43... Kg6 {[%clk 0:00:08.7]} 44. Bc2 {[%clk 0:01:10.3]} 44...
Rc5 {[%clk 0:00:06.5]} 45. Rg8+ {[%clk 0:01:10.3]} 45... Kf6 {[%clk 0:00:05.8]}
46. Rg5 {[%clk 0:01:11.2]} 46... Nb4 {[%clk 0:00:05.1]} 47. Bd1 {[%clk
0:01:10.8]} 47... Rd5+ {[%clk 0:00:05.1]} 48. Ke1 {[%clk 0:01:09]} 48... Nd3+
{[%clk 0:00:04.8]} 49. Ke2 {[%clk 0:01:07.9]} 49... Nc1+ {[%clk 0:00:04.4]} 50.
Ke1 {[%clk 0:01:06.4]} 50... Nd3+ {[%clk 0:00:04.8]} 51. Kf1 {[%clk 0:01:04]}
51... Nxf4 {[%clk 0:00:04.8]} 52. Bf3 {[%clk 0:01:04]} 52... Rd3 {[%clk
0:00:02.5]} 53. Bxh5 {[%clk 0:00:38.9]} 53... Nxh5 {[%clk 0:00:02]} 54. Rxh5
{[%clk 0:00:38.4]} 54... Rxg3 {[%clk 0:00:02.9]} 55. Rh7 {[%clk 0:00:37.2]}
55... a5 {[%clk 0:00:02.7]} 56. Rh6+ {[%clk 0:00:36.8]} 56... Rg6 {[%clk
0:00:03.3]} 57. Rh8 {[%clk 0:00:33.6]} 57... Ke5 {[%clk 0:00:03.2]} 58. h5
{[%clk 0:00:31.4]} 58... Rg5 {[%clk 0:00:02.7]} 59. h6 {[%clk 0:00:31.3]} 59...
Rh5 {[%clk 0:00:03.2]} 60. Kf2 {[%clk 0:00:31.5]} 60... Kf4 {[%clk 0:00:03.4]}
61. h7 {[%clk 0:00:31.3]} 61... Rh2+ {[%clk 0:00:02.6]} 62. Ke1 {[%clk
0:00:29.6]} 62... Rh6 {[%clk 0:00:03.5]} 63. Kd2 {[%clk 0:00:29.6]} 63... Kf3
{[%clk 0:00:03.4]} 64. Rf8 {[%clk 0:00:26.4]} 64... Rxh7 {[%clk 0:00:03.3]} 65.
Rxf5+ {[%clk 0:00:27.3]} 65... Ke4 {[%clk 0:00:03.8]} 66. Rb5 {[%clk 0:00:23.3]}
66... Rh6 {[%clk 0:00:03.1]} 67. Kc3 {[%clk 0:00:23.2]} 67... Rc6+ {[%clk
0:00:03.6]} 68. Kb3 {[%clk 0:00:21.9]} 68... Kd4 {[%clk 0:00:04]} 69. Rh5 {[%clk
0:00:21.3]} 69... Rc3+ {[%clk 0:00:03.8]} 70. Kb2 {[%clk 0:00:20.8]} 70... Rc5
{[%clk 0:00:03.9]} 71. Rh6 {[%clk 0:00:19.8]} 71... b5 {[%clk 0:00:04]} 72. axb5
{[%clk 0:00:19.7]} 72... Rxb5+ {[%clk 0:00:04.9]} 73. Ka3 {[%clk 0:00:20.2]}
73... Kc4 {[%clk 0:00:04.8]} 74. Rh4+ {[%clk 0:00:20]} 74... Kc5 {[%clk
0:00:05.2]} 75. Rh5+ {[%clk 0:00:18.8]} 75... Kb6 {[%clk 0:00:04.9]} 76. Rh6+
{[%clk 0:00:18.8]} 76... Ka7 {[%clk 0:00:05.3]} 77. Ka4 {[%clk 0:00:19.2]} 77...
Rb6 {[%clk 0:00:05]} 78. Rh7+ {[%clk 0:00:18.6]} 78... Ka6 {[%clk 0:00:05.4]}
79. Rh8 {[%clk 0:00:15.5]} 79... Rb4+ {[%clk 0:00:05.6]} 80. Ka3 {[%clk
0:00:15.6]} 80... Rb6 {[%clk 0:00:06.1]} 81. Ra8+ {[%clk 0:00:15.1]} 81... Kb5
{[%clk 0:00:05.9]} 82. Rh8 {[%clk 0:00:16]} 82... Ka6 {[%clk 0:00:06.1]} 83. Rh5
{[%clk 0:00:16.9]} 83... Rb5 {[%clk 0:00:06.3]} 84. Rh6+ {[%clk 0:00:17.1]}
84... Rb6 {[%clk 0:00:06.7]} 85. Rh4 {[%clk 0:00:17.2]} 85... Rb4 {[%clk
0:00:06]} 86. Rh8 {[%clk 0:00:17]} 86... Rb7 {[%clk 0:00:05.4]} 87. Rh3 {[%clk
0:00:13.7]} 87... Rb5 {[%clk 0:00:05.2]} 88. Rh8 {[%clk 0:00:12.7]} 88... Rb7
{[%clk 0:00:05.2]} 89. Ra8+ {[%clk 0:00:12.8]} 89... Kb5 {[%clk 0:00:04.8]} 90.
Rc8 {[%clk 0:00:12.3]} 90... Rb6 {[%clk 0:00:04.6]} 91. Ra8 {[%clk 0:00:11.8]}
91... Rb7 {[%clk 0:00:04.1]} 92. Rc8 {[%clk 0:00:11.7]} 92... Ka6 {[%clk
0:00:04.1]} 93. Rc6+ {[%clk 0:00:10.5]} 93... Rb6 {[%clk 0:00:04.3]} 94. Rxb6+
{[%clk 0:00:08.9]} 94... Kxb6 {[%clk 0:00:04.6]} 95. Ka4 {[%clk 0:00:08.4]}
95... Ka6 {[%clk 0:00:05.5]} 96. Ka3 {[%clk 0:00:08.2]} 96... Kb5 {[%clk
0:00:06.4]} 97. Kb3 {[%clk 0:00:08.6]} 97... a4+ {[%clk 0:00:07.3]} 98. Ka2
{[%clk 0:00:09.5]} 98... Ka5 {[%clk 0:00:07.9]} 99. Kb2 {[%clk 0:00:10.4]} 99...
Kb4 {[%clk 0:00:08.8]} 100. Ka2 {[%clk 0:00:10.5]} 100... a3 {[%clk 0:00:09.7]}
101. Ka1 {[%clk 0:00:11.3]} 101... Kb3 {[%clk 0:00:10]} 102. Kb1 {[%clk
0:00:12.2]} 102... Kc3 {[%clk 0:00:09.7]} 103. Ka1 {[%clk 0:00:13.1]} 103... Kb4
{[%clk 0:00:09.4]} 104. Kb1 {[%clk 0:00:13.8]} 104... Kb3 {[%clk 0:00:09.5]}
105. Ka1 {[%clk 0:00:14.7]} 105... Ka4 {[%clk 0:00:09.9]} 106. Kb1 {[%clk
0:00:15.6]} 106... Kb3 {[%clk 0:00:09.7]} 107. Ka1 {[%clk 0:00:16.5]} 107... Kc2
{[%clk 0:00:09.6]} 108. Ka2 {[%clk 0:00:16.5]} 108... Kc3 {[%clk 0:00:10.1]}
109. Kxa3 {[%clk 0:00:17.4]} 1/2-1/2

[Event "*** Titled Tuesday Blitz"]
[Site "Chess.com"]
[Date "2020.12.01"]
[Round "10"]
[White "annacramling"]
[Black "Deepweb2020"]
[Result "1-0"]
[WhiteElo "2121"]
[BlackElo "2251"]
[TimeControl "180+1"]
[EndTime "11:58:04 PST"]
[Termination "annacramling won by checkmate"]

1. d4 {[%clk 0:03:00.9]} 1... Nf6 {[%clk 0:02:51.9]} 2. c4 {[%clk 0:03:00.7]}
2... e6 {[%clk 0:02:51.6]} 3. Nc3 {[%clk 0:03:00.6]} 3... Bb4 {[%clk 0:02:50.2]}
4. Qc2 {[%clk 0:03:01.1]} 4... d5 {[%clk 0:02:48.9]} 5. cxd5 {[%clk 0:02:56.5]}
5... exd5 {[%clk 0:02:49.8]} 6. Bg5 {[%clk 0:02:56.2]} 6... h6 {[%clk
0:02:49.6]} 7. Bh4 {[%clk 0:02:56.5]} 7... c5 {[%clk 0:02:50]} 8. e3 {[%clk
0:02:52.4]} 8... g5 {[%clk 0:02:49.8]} 9. Bg3 {[%clk 0:02:52.3]} 9... Qa5 {[%clk
0:02:50.7]} 10. dxc5 {[%clk 0:02:13.4]} 10... Ne4 {[%clk 0:02:45.9]} 11. Rc1
{[%clk 0:02:11.8]} 11... Qxa2 {[%clk 0:02:42.8]} 12. Bxb8 {[%clk 0:01:57.9]}
12... Bxc3+ {[%clk 0:02:19.2]} 13. bxc3 {[%clk 0:01:57.2]} 13... Qxc2 {[%clk
0:02:18.8]} 14. Rxc2 {[%clk 0:01:58.1]} 14... Rxb8 {[%clk 0:02:17.9]} 15. c4
{[%clk 0:01:47.7]} 15... dxc4 {[%clk 0:01:46.6]} 16. Rxc4 {[%clk 0:01:41]} 16...
f5 {[%clk 0:01:46.3]} 17. f3 {[%clk 0:01:38.4]} 17... Be6 {[%clk 0:01:43.2]} 18.
fxe4 {[%clk 0:01:35.9]} 18... Bxc4 {[%clk 0:01:42.2]} 19. Bxc4 {[%clk
0:01:36.8]} 19... fxe4 {[%clk 0:01:41]} 20. Ne2 {[%clk 0:01:35.7]} 20... Rf8
{[%clk 0:01:30]} 21. Nd4 {[%clk 0:01:32.4]} 21... Rf6 {[%clk 0:01:23.3]} 22. Nb5
{[%clk 0:01:04.3]} 22... a6 {[%clk 0:01:20.1]} 23. Nd6+ {[%clk 0:00:57.8]} 23...
Kd7 {[%clk 0:01:17.7]} 24. Nxe4 {[%clk 0:00:57.1]} 24... Rf5 {[%clk 0:01:08.3]}
25. Ke2 {[%clk 0:00:52.8]} 25... b5 {[%clk 0:01:03.1]} 26. cxb6 {[%clk
0:00:41.2]} 26... Rxb6 {[%clk 0:01:00.3]} 27. Rd1+ {[%clk 0:00:40.8]} 27... Ke7
{[%clk 0:00:56.9]} 28. Nc3 {[%clk 0:00:27.9]} 28... Rc6 {[%clk 0:00:40.2]} 29.
Nd5+ {[%clk 0:00:18.4]} 29... Ke8 {[%clk 0:00:27.7]} 30. e4 {[%clk 0:00:18.5]}
30... Rf7 {[%clk 0:00:16.9]} 31. Bb3 {[%clk 0:00:10.6]} 31... Rb7 {[%clk
0:00:14.5]} 32. Ba4 {[%clk 0:00:09.9]} 32... Rb5 {[%clk 0:00:14.8]} 33. Bxb5
{[%clk 0:00:08.3]} 33... axb5 {[%clk 0:00:15.4]} 34. Rb1 {[%clk 0:00:07.8]}
34... Rc2+ {[%clk 0:00:12.5]} 35. Kf3 {[%clk 0:00:06.7]} 35... Rc5 {[%clk
0:00:09.7]} 36. Rxb5 {[%clk 0:00:04.6]} 36... Rc1 {[%clk 0:00:09.5]} 37. Nf6+
{[%clk 0:00:03.5]} 37... Kf7 {[%clk 0:00:08.9]} 38. Ng4 {[%clk 0:00:04]} 38...
h5 {[%clk 0:00:08.7]} 39. Ne5+ {[%clk 0:00:03.7]} 39... Ke6 {[%clk 0:00:08.2]}
40. Nd3 {[%clk 0:00:03.8]} 40... Rc3 {[%clk 0:00:06.8]} 41. Ke2 {[%clk
0:00:03.5]} 41... Rc2+ {[%clk 0:00:06.9]} 42. Kd1 {[%clk 0:00:03]} 42... Rxg2
{[%clk 0:00:05.9]} 43. e5 {[%clk 0:00:02.9]} 43... Rxh2 {[%clk 0:00:05.3]} 44.
Rb6+ {[%clk 0:00:03.4]} 44... Ke7 {[%clk 0:00:05.9]} 45. e6 {[%clk 0:00:03.1]}
45... g4 {[%clk 0:00:03.4]} 46. Ne5 {[%clk 0:00:03.4]} 46... g3 {[%clk
0:00:02.7]} 47. Ng6+ {[%clk 0:00:02.9]} 47... Kf6 {[%clk 0:00:02.2]} 48. e7+
{[%clk 0:00:03.4]} 48... Kf7 {[%clk 0:00:02.6]} 49. Rb7 {[%clk 0:00:02.7]} 49...
g2 {[%clk 0:00:02.1]} 50. Ne5+ {[%clk 0:00:03.1]} 50... Ke8 {[%clk 0:00:01.8]}
51. Nf3 {[%clk 0:00:03.5]} 51... Rh1+ {[%clk 0:00:01.5]} 52. Ke2 {[%clk
0:00:04]} 52... g1=Q {[%clk 0:00:01.6]} 53. Nxg1 {[%clk 0:00:04.5]} 53... Rxg1
{[%clk 0:00:02.5]} 54. Kf2 {[%clk 0:00:05]} 54... Ra1 {[%clk 0:00:02]} 55. Kg3
{[%clk 0:00:04.9]} 55... Ra2 {[%clk 0:00:02.9]} 56. Kh4 {[%clk 0:00:04.7]} 56...
Ra5 {[%clk 0:00:03.3]} 57. Rc7 {[%clk 0:00:04.3]} 57... Re5 {[%clk 0:00:03.7]}
58. Rb7 {[%clk 0:00:04.5]} 58... Ra5 {[%clk 0:00:03.6]} 59. Rc7 {[%clk
0:00:04.1]} 59... Kf7 {[%clk 0:00:03.5]} 60. e8=Q+ {[%clk 0:00:03.7]} 60... Kxe8
{[%clk 0:00:03.3]} 61. Rh7 {[%clk 0:00:04.4]} 61... Ra4+ {[%clk 0:00:02.8]} 62.
Kg5 {[%clk 0:00:03.7]} 62... Ra5+ {[%clk 0:00:03.7]} 63. Kh4 {[%clk 0:00:03.4]}
63... Kf8 {[%clk 0:00:03.7]} 64. Rxh5 {[%clk 0:00:03.5]} 64... Ra4+ {[%clk
0:00:03.9]} 65. Kg3 {[%clk 0:00:03.8]} 65... Kf7 {[%clk 0:00:04.1]} 66. Rf5+
{[%clk 0:00:03.7]} 66... Kg6 {[%clk 0:00:03.5]} 67. Rf4 {[%clk 0:00:04.6]} 67...
Ra3+ {[%clk 0:00:03.5]} 68. Kg4 {[%clk 0:00:05.1]} 68... Ra1 {[%clk 0:00:03.7]}
69. Rd4 {[%clk 0:00:06]} 69... Rg1+ {[%clk 0:00:02.3]} 70. Kf3 {[%clk
0:00:05.7]} 70... Rf1+ {[%clk 0:00:02.7]} 71. Ke2 {[%clk 0:00:06.1]} 71... Ra1
{[%clk 0:00:03.6]} 72. Ke3 {[%clk 0:00:06.4]} 72... Kf5 {[%clk 0:00:04]} 73. Ke2
{[%clk 0:00:06.1]} 73... Ke5 {[%clk 0:00:03.9]} 74. Rb4 {[%clk 0:00:05.8]} 74...
Ra2+ {[%clk 0:00:03.6]} 75. Ke3 {[%clk 0:00:06.3]} 75... Rh2 {[%clk 0:00:04.4]}
76. Rb5+ {[%clk 0:00:06.3]} 76... Kd6 {[%clk 0:00:04.2]} 77. Ke4 {[%clk
0:00:06.1]} 77... Kc6 {[%clk 0:00:04.2]} 78. Rf5 {[%clk 0:00:05.9]} 78... Ra2
{[%clk 0:00:03.3]} 79. Kd4 {[%clk 0:00:06.2]} 79... Ra4+ {[%clk 0:00:02.8]} 80.
Kc3 {[%clk 0:00:06.7]} 80... Ra3+ {[%clk 0:00:03.2]} 81. Kc4 {[%clk 0:00:07.1]}
81... Rh3 {[%clk 0:00:03.9]} 82. Rf6+ {[%clk 0:00:07.2]} 82... Kd7 {[%clk
0:00:04]} 83. Kc5 {[%clk 0:00:07.5]} 83... Ke7 {[%clk 0:00:04.2]} 84. Ra6 {[%clk
0:00:07.5]} 84... Rc3+ {[%clk 0:00:04.7]} 85. Kd5 {[%clk 0:00:07.9]} 85... Rh3
{[%clk 0:00:05.4]} 86. Ke5 {[%clk 0:00:07.9]} 86... Rh5+ {[%clk 0:00:05]} 87.
Ke4 {[%clk 0:00:07.8]} 87... Rh4+ {[%clk 0:00:05.6]} 88. Ke5 {[%clk 0:00:08.1]}
88... Rh3 {[%clk 0:00:06.5]} 89. Ra7+ {[%clk 0:00:08]} 89... Kd8 {[%clk
0:00:07.2]} 90. Ke6 {[%clk 0:00:07.7]} 90... Kc8 {[%clk 0:00:06.8]} 91. Kd6
{[%clk 0:00:07.9]} 91... Rh5 {[%clk 0:00:06]} 92. Kc6 {[%clk 0:00:06.1]} 92...
Rh6+ {[%clk 0:00:06.3]} 93. Kc5 {[%clk 0:00:05.9]} 93... Kb8 {[%clk 0:00:07]}
94. Rf7 {[%clk 0:00:05.7]} 94... Rh5+ {[%clk 0:00:07.1]} 95. Kb6 {[%clk
0:00:05.9]} 95... Rh6+ {[%clk 0:00:06.8]} 96. Kb5 {[%clk 0:00:05.7]} 96... Rh1
{[%clk 0:00:06.8]} 97. Kb6 {[%clk 0:00:05.6]} 97... Rb1+ {[%clk 0:00:06]} 98.
Kc6 {[%clk 0:00:05.6]} 98... Kc8 {[%clk 0:00:06.8]} 99. Rf8# {[%clk 0:00:05.6]}
1-0

[Event "*** Titled Tuesday Blitz"]
[Site "Chess.com"]
[Date "2020.12.01"]
[Round "11"]
[White "Nikolaj_6"]
[Black "Supernotar"]
[Result "1/2-1/2"]
[WhiteElo "2651"]
[BlackElo "2781"]
[TimeControl "180+1"]
[EndTime "12:00:31 PST"]
[Termination "Game drawn by repetition"]

1. e4 {[%clk 0:03:00.9]} 1... c6 {[%clk 0:02:59.4]} 2. d4 {[%clk 0:03:00.5]}
2... d5 {[%clk 0:03:00.3]} 3. Nc3 {[%clk 0:03:00.8]} 3... dxe4 {[%clk
0:03:00.2]} 4. Nxe4 {[%clk 0:03:01.7]} 4... Bf5 {[%clk 0:03:00.7]} 5. Ng3 {[%clk
0:03:01.6]} 5... Bg6 {[%clk 0:03:01.2]} 6. h4 {[%clk 0:03:01.8]} 6... h6 {[%clk
0:03:01.5]} 7. Nf3 {[%clk 0:03:02.1]} 7... Nd7 {[%clk 0:03:01.6]} 8. h5 {[%clk
0:03:01.4]} 8... Bh7 {[%clk 0:03:02.1]} 9. Bd3 {[%clk 0:03:01.9]} 9... Bxd3
{[%clk 0:03:02.2]} 10. Qxd3 {[%clk 0:03:02.8]} 10... e6 {[%clk 0:03:03]} 11. Bd2
{[%clk 0:03:02]} 11... Ngf6 {[%clk 0:03:03.9]} 12. O-O-O {[%clk 0:03:02]} 12...
Be7 {[%clk 0:03:04.6]} 13. Kb1 {[%clk 0:03:02.2]} 13... O-O {[%clk 0:03:04.7]}
14. Ne4 {[%clk 0:03:01.8]} 14... Nxe4 {[%clk 0:03:04.9]} 15. Qxe4 {[%clk
0:03:02.1]} 15... Nf6 {[%clk 0:03:05.8]} 16. Qe2 {[%clk 0:03:02.1]} 16... Qd5
{[%clk 0:03:06.2]} 17. c4 {[%clk 0:02:54.5]} 17... Qe4+ {[%clk 0:03:06.3]} 18.
Qxe4 {[%clk 0:02:53.7]} 18... Nxe4 {[%clk 0:03:07.2]} 19. Be3 {[%clk 0:02:52.7]}
19... f5 {[%clk 0:03:07.4]} 20. g3 {[%clk 0:02:50.1]} 20... Bg5 {[%clk
0:03:01.3]} 21. Rhg1 {[%clk 0:02:35.7]} 21... Bxe3 {[%clk 0:02:55.2]} 22. fxe3
{[%clk 0:02:35.6]} 22... Nf6 {[%clk 0:02:45.6]} 23. Rh1 {[%clk 0:02:33.3]} 23...
Ne4 {[%clk 0:02:44.5]} 24. Rhg1 {[%clk 0:02:32.6]} 24... Nf6 {[%clk 0:02:37.9]}
25. Rh1 {[%clk 0:02:32.2]} 25... Ne4 {[%clk 0:02:30.6]} 26. Rhg1 {[%clk
0:02:31.5]} 1/2-1/2

[Event "*** Titled Tuesday Blitz"]
[Site "Chess.com"]
[Date "2020.12.01"]
[Round "11"]
[White "Sacbutt"]
[Black "JiiHart"]
[Result "1-0"]
[WhiteElo "2246"]
[BlackElo "2089"]
[TimeControl "180+1"]
[EndTime "12:00:37 PST"]
[Termination "Sacbutt won by resignation"]

1. e4 {[%clk 0:03:00.9]} 1... c5 {[%clk 0:02:59.5]} 2. Nf3 {[%clk 0:03:01]} 2...
Nc6 {[%clk 0:02:59.6]} 3. d4 {[%clk 0:03:01.4]} 3... cxd4 {[%clk 0:03:00]} 4. c3
{[%clk 0:03:02.1]} 4... Nf6 {[%clk 0:03:00.6]} 5. e5 {[%clk 0:03:01.9]} 5... Nd5
{[%clk 0:03:00.8]} 6. cxd4 {[%clk 0:03:02.2]} 6... d6 {[%clk 0:03:01.2]} 7. Nc3
{[%clk 0:03:02.5]} 7... Nxc3 {[%clk 0:02:59.8]} 8. bxc3 {[%clk 0:03:02.1]} 8...
dxe5 {[%clk 0:03:00]} 9. Nxe5 {[%clk 0:03:01.1]} 9... Nxe5 {[%clk 0:02:59.5]}
10. dxe5 {[%clk 0:03:02]} 10... Qxd1+ {[%clk 0:02:59.5]} 11. Kxd1 {[%clk
0:03:02.9]} 11... Bf5 {[%clk 0:02:58.9]} 12. Bb5+ {[%clk 0:03:02.5]} 12... Bd7
{[%clk 0:02:50.3]} 13. Bxd7+ {[%clk 0:03:02]} 13... Kxd7 {[%clk 0:02:51.2]} 14.
Be3 {[%clk 0:02:59.8]} 14... e6 {[%clk 0:02:47]} 15. Ke2 {[%clk 0:02:59.4]}
15... b6 {[%clk 0:02:40.4]} 16. Rhd1+ {[%clk 0:02:58.3]} 16... Kc7 {[%clk
0:02:39.6]} 17. a4 {[%clk 0:02:58.3]} 17... Be7 {[%clk 0:02:28]} 18. a5 {[%clk
0:02:58]} 18... Rhd8 {[%clk 0:02:25]} 19. Rxd8 {[%clk 0:02:56.6]} 19... Rxd8
{[%clk 0:02:07.4]} 20. axb6+ {[%clk 0:02:56.1]} 20... Kb7 {[%clk 0:01:54.4]} 21.
Rxa7+ {[%clk 0:02:55]} 1-0

[Event "*** Titled Tuesday Blitz"]
[Site "Chess.com"]
[Date "2020.12.01"]
[Round "11"]
[White "toog"]
[Black "dhaessel"]
[Result "1-0"]
[WhiteElo "2337"]
[BlackElo "1887"]
[TimeControl "180+1"]
[EndTime "12:01:15 PST"]
[Termination "toog won by resignation"]

1. e4 {[%clk 0:03:00.9]} 1... e5 {[%clk 0:02:58.6]} 2. Nf3 {[%clk 0:02:52]} 2...
Nc6 {[%clk 0:02:57.5]} 3. Bb5 {[%clk 0:02:51.5]} 3... Nf6 {[%clk 0:02:56.4]} 4.
O-O {[%clk 0:02:51]} 4... Nxe4 {[%clk 0:02:55.6]} 5. Re1 {[%clk 0:02:50.5]} 5...
Nd6 {[%clk 0:02:54.1]} 6. Nxe5 {[%clk 0:02:50.2]} 6... Be7 {[%clk 0:02:53.3]} 7.
Bf1 {[%clk 0:02:49.1]} 7... Nxe5 {[%clk 0:02:51.2]} 8. Rxe5 {[%clk 0:02:48.4]}
8... Kf8 {[%clk 0:02:49.6]} 9. d4 {[%clk 0:02:47.8]} 9... Bf6 {[%clk 0:02:47.4]}
10. Re1 {[%clk 0:02:47.3]} 10... g6 {[%clk 0:02:45.3]} 11. Bh6+ {[%clk
0:02:43.1]} 11... Bg7 {[%clk 0:02:44.3]} 12. Qd2 {[%clk 0:02:42.8]} 12... Qf6
{[%clk 0:02:40.6]} 13. Nc3 {[%clk 0:02:36.5]} 13... Nf5 {[%clk 0:02:39.4]} 14.
Bg5 {[%clk 0:02:29.8]} 14... Qxd4 {[%clk 0:02:35]} 15. Qe2 {[%clk 0:02:29.3]}
15... Bf6 {[%clk 0:02:06.8]} 16. Rad1 {[%clk 0:02:22.5]} 16... Bxg5 {[%clk
0:01:47.9]} 17. Rxd4 {[%clk 0:02:16.2]} 17... Nxd4 {[%clk 0:01:48.8]} 18. Qe5
{[%clk 0:02:15.2]} 1-0

[Event "*** Titled Tuesday Blitz"]
[Site "Chess.com"]
[Date "2020.12.01"]
[Round "11"]
[White "Forantes"]
[Black "awesomevishesh"]
[Result "0-1"]
[WhiteElo "2388"]
[BlackElo "2544"]
[TimeControl "180+1"]
[EndTime "12:01:31 PST"]
[Termination "awesomevishesh won by checkmate"]

1. Nf3 {[%clk 0:03:00.9]} 1... Nf6 {[%clk 0:02:59.7]} 2. g3 {[%clk 0:03:01.2]}
2... g6 {[%clk 0:03:00.6]} 3. Bg2 {[%clk 0:03:00.5]} 3... Bg7 {[%clk 0:03:01.5]}
4. O-O {[%clk 0:03:01.1]} 4... O-O {[%clk 0:03:02.4]} 5. d4 {[%clk 0:03:02]}
5... d6 {[%clk 0:03:02.9]} 6. c4 {[%clk 0:03:02.1]} 6... Nc6 {[%clk 0:03:03.5]}
7. Nc3 {[%clk 0:03:02.8]} 7... e5 {[%clk 0:03:04.1]} 8. Re1 {[%clk 0:03:01.6]}
8... Re8 {[%clk 0:02:50.6]} 9. e4 {[%clk 0:03:00.3]} 9... Bg4 {[%clk 0:02:49.4]}
10. d5 {[%clk 0:02:52.7]} 10... Nd4 {[%clk 0:02:49.6]} 11. Be3 {[%clk
0:02:53.2]} 11... Nd7 {[%clk 0:02:45.5]} 12. h3 {[%clk 0:02:36.5]} 12... Bxf3
{[%clk 0:02:44.5]} 13. Bxf3 {[%clk 0:02:37.1]} 13... c5 {[%clk 0:02:44.3]} 14.
Bg2 {[%clk 0:02:32.8]} 14... Rf8 {[%clk 0:02:42.3]} 15. f4 {[%clk 0:02:19.8]}
15... exf4 {[%clk 0:02:36.4]} 16. Bxf4 {[%clk 0:02:20]} 16... Ne5 {[%clk
0:02:35.7]} 17. Ne2 {[%clk 0:02:17.9]} 17... Ndf3+ {[%clk 0:02:31.5]} 18. Bxf3
{[%clk 0:02:16.7]} 18... Nxf3+ {[%clk 0:02:32.4]} 19. Kf2 {[%clk 0:02:16.8]}
19... Nxe1 {[%clk 0:02:32.8]} 20. Qxe1 {[%clk 0:02:17.6]} 20... f5 {[%clk
0:02:25.4]} 21. Nc3 {[%clk 0:02:13.7]} 21... fxe4 {[%clk 0:02:24.3]} 22. Nxe4
{[%clk 0:02:13.1]} 22... g5 {[%clk 0:02:24.6]} 23. Nxg5 {[%clk 0:02:04.1]} 23...
Qxg5 {[%clk 0:02:24.8]} 24. Qe6+ {[%clk 0:02:04.3]} 24... Kh8 {[%clk 0:02:24.7]}
25. h4 {[%clk 0:02:03.2]} 25... Rxf4+ {[%clk 0:02:24.4]} 26. gxf4 {[%clk
0:02:02.5]} 26... Qxf4+ {[%clk 0:02:25]} 27. Kg2 {[%clk 0:02:02.6]} 27... Rf8
{[%clk 0:02:24.7]} 28. Qe2 {[%clk 0:02:00.8]} 28... Be5 {[%clk 0:02:23.2]} 29.
Rg1 {[%clk 0:01:57.7]} 29... Qh2# {[%clk 0:02:21.7]} 0-1